[Event "*** SCC Grand Prix: Titled Tuesday Blitz"]
[Site "Chess.com"]
[Date "2020.07.07"]
[Round "3"]
[White "TamirNabaty"]
[Black "bugsbunny444"]
[Result "1/2-1/2"]
[WhiteElo "2708"]
[BlackElo "2498"]
[TimeControl "180+1"]
[EndTime "10:29:57 PDT"]
[Termination "Game drawn by repetition"]

1. Nf3 {[%clk 0:03:00.9]} 1... d5 {[%clk 0:02:58.5]} 2. g3 {[%clk 0:03:01.8]}
2... Nc6 {[%clk 0:02:58.1]} 3. Bg2 {[%clk 0:03:02.3]} 3... e5 {[%clk 0:02:58.5]}
4. O-O {[%clk 0:03:02.7]} 4... e4 {[%clk 0:02:58.5]} 5. Ne1 {[%clk 0:03:02.2]}
5... f5 {[%clk 0:02:59.1]} 6. d3 {[%clk 0:03:00.5]} 6... Be6 {[%clk 0:02:59.7]}
7. c3 {[%clk 0:02:55.7]} 7... Nf6 {[%clk 0:02:57.3]} 8. f3 {[%clk 0:02:56]} 8...
Bc5+ {[%clk 0:02:47.5]} 9. Kh1 {[%clk 0:02:55.8]} 9... O-O {[%clk 0:02:30.3]}
10. Nd2 {[%clk 0:02:50.8]} 10... a5 {[%clk 0:02:07]} 11. Nb3 {[%clk 0:02:49.7]}
11... Bb6 {[%clk 0:01:58.4]} 12. a4 {[%clk 0:02:48.8]} 12... d4 {[%clk
0:01:46.8]} 13. cxd4 {[%clk 0:02:32.6]} 13... Nxd4 {[%clk 0:01:14.7]} 14. Nxd4
{[%clk 0:02:32.5]} 14... Qxd4 {[%clk 0:00:51.1]} 15. Nc2 {[%clk 0:02:32.8]}
15... Qd5 {[%clk 0:00:30.5]} 16. fxe4 {[%clk 0:02:18.8]} 16... fxe4 {[%clk
0:00:30.7]} 17. Be3 {[%clk 0:02:18.9]} 17... Bxe3 {[%clk 0:00:21]} 18. Nxe3
{[%clk 0:02:19.1]} 18... Qg5 {[%clk 0:00:21.9]} 19. Rf4 {[%clk 0:02:08.4]} 19...
Rad8 {[%clk 0:00:10.1]} 20. Qc2 {[%clk 0:02:08.1]} 20... exd3 {[%clk 0:00:07.8]}
21. exd3 {[%clk 0:02:07.9]} 21... c6 {[%clk 0:00:04.5]} 22. Re1 {[%clk
0:02:06.5]} 22... Nd5 {[%clk 0:00:04.8]} 23. Rxf8+ {[%clk 0:01:49.1]} 23... Rxf8
{[%clk 0:00:04.5]} 24. Nc4 {[%clk 0:01:50]} 24... Nb4 {[%clk 0:00:02.4]} 25. Qc3
{[%clk 0:01:42.2]} 25... Bd5 {[%clk 0:00:02.7]} 26. Ne3 {[%clk 0:00:58]} 26...
Qxe3 {[%clk 0:00:02.5]} 27. Bxd5+ {[%clk 0:00:57.7]} 27... Nxd5 {[%clk
0:00:02.8]} 28. Rxe3 {[%clk 0:00:57.8]} 28... Nxc3 {[%clk 0:00:03.3]} 29. bxc3
{[%clk 0:00:58.7]} 29... Rf2 {[%clk 0:00:03.1]} 30. Re8+ {[%clk 0:00:53.5]}
30... Kf7 {[%clk 0:00:02.9]} 31. Rb8 {[%clk 0:00:54.4]} 31... Rb2 {[%clk
0:00:03.4]} 32. Kg1 {[%clk 0:00:54.2]} 32... Rb3 {[%clk 0:00:03.8]} 33. c4
{[%clk 0:00:54.5]} 33... Kf6 {[%clk 0:00:02.7]} 34. d4 {[%clk 0:00:54.8]} 34...
h5 {[%clk 0:00:03.2]} 35. Ra8 {[%clk 0:00:52]} 35... Rb4 {[%clk 0:00:03.5]} 36.
Rxa5 {[%clk 0:00:49.5]} 36... Rxc4 {[%clk 0:00:03.9]} 37. d5 {[%clk 0:00:49.7]}
37... cxd5 {[%clk 0:00:04.3]} 38. Rxd5 {[%clk 0:00:49.4]} 38... Rxa4 {[%clk
0:00:04.7]} 39. Rxh5 {[%clk 0:00:49.5]} 39... Rb4 {[%clk 0:00:03.8]} 40. Rc5
{[%clk 0:00:48.1]} 40... Rd4 {[%clk 0:00:02.8]} 41. Rb5 {[%clk 0:00:47.9]} 41...
Rd7 {[%clk 0:00:03]} 42. Kg2 {[%clk 0:00:48.3]} 42... Ke6 {[%clk 0:00:02.9]} 43.
h4 {[%clk 0:00:43.2]} 43... Kd6 {[%clk 0:00:03.3]} 44. Kh3 {[%clk 0:00:41.1]}
44... Kc6 {[%clk 0:00:03.9]} 45. Rb1 {[%clk 0:00:40.9]} 45... b5 {[%clk
0:00:04.8]} 46. Kg4 {[%clk 0:00:41.3]} 46... Kc5 {[%clk 0:00:05.3]} 47. Rc1+
{[%clk 0:00:41.4]} 47... Kb6 {[%clk 0:00:04.6]} 48. Rb1 {[%clk 0:00:40.1]} 48...
Kc5 {[%clk 0:00:04.7]} 49. Rc1+ {[%clk 0:00:38.9]} 49... Kb6 {[%clk 0:00:04.9]}
50. Kf5 {[%clk 0:00:39.3]} 50... b4 {[%clk 0:00:03.9]} 51. g4 {[%clk 0:00:39.5]}
51... Kb5 {[%clk 0:00:03.4]} 52. h5 {[%clk 0:00:39.1]} 52... b3 {[%clk
0:00:03.2]} 53. g5 {[%clk 0:00:37.7]} 53... Kb4 {[%clk 0:00:03.1]} 54. Rc8
{[%clk 0:00:37.1]} 54... b2 {[%clk 0:00:02.9]} 55. Rb8+ {[%clk 0:00:37.5]} 55...
Kc3 {[%clk 0:00:03.3]} 56. Kg6 {[%clk 0:00:38]} 56... Kc2 {[%clk 0:00:03]} 57.
Rc8+ {[%clk 0:00:36.3]} 57... Kd2 {[%clk 0:00:03.5]} 58. Rb8 {[%clk 0:00:36.6]}
58... Kc2 {[%clk 0:00:04.1]} 59. Rc8+ {[%clk 0:00:32.7]} 59... Kd2 {[%clk
0:00:04.5]} 60. Rb8 {[%clk 0:00:32.6]} 60... Kc2 {[%clk 0:00:05]} 1/2-1/2

[Event "*** SCC Grand Prix: Titled Tuesday Blitz"]
[Site "Chess.com"]
[Date "2020.07.07"]
[Round "3"]
[White "Brave_spirit12"]
[Black "SidArun"]
[Result "1-0"]
[WhiteElo "2431"]
[BlackElo "2202"]
[TimeControl "180+1"]
[EndTime "10:29:58 PDT"]
[Termination "Brave_spirit12 won by resignation"]

1. e4 {[%clk 0:03:00.9]} 1... c6 {[%clk 0:02:57.3]} 2. Nc3 {[%clk 0:03:00.7]}
2... d5 {[%clk 0:02:56.3]} 3. Nf3 {[%clk 0:03:00.7]} 3... dxe4 {[%clk
0:02:56.6]} 4. Nxe4 {[%clk 0:03:00.7]} 4... Nf6 {[%clk 0:02:55.4]} 5. Nxf6+
{[%clk 0:03:00.5]} 5... exf6 {[%clk 0:02:52.1]} 6. d4 {[%clk 0:02:58.7]} 6...
Bg4 {[%clk 0:02:51.3]} 7. Bf4 {[%clk 0:02:55.7]} 7... Bd6 {[%clk 0:02:50.9]} 8.
Qd2 {[%clk 0:02:54.6]} 8... Bxf4 {[%clk 0:02:50.3]} 9. Qxf4 {[%clk 0:02:54.1]}
9... Bxf3 {[%clk 0:02:50.7]} 10. gxf3 {[%clk 0:02:50.9]} 10... Qa5+ {[%clk
0:02:50.7]} 11. c3 {[%clk 0:02:48.8]} 11... Nd7 {[%clk 0:02:50.2]} 12. Qe4+
{[%clk 0:02:44.7]} 12... Kf8 {[%clk 0:02:50.3]} 13. Be2 {[%clk 0:02:39.7]} 13...
Re8 {[%clk 0:02:48.8]} 14. Qd3 {[%clk 0:02:39.2]} 14... c5 {[%clk 0:02:33.8]}
15. dxc5 {[%clk 0:02:26]} 15... Nxc5 {[%clk 0:02:33.5]} 16. Qd6+ {[%clk
0:02:16.4]} 16... Kg8 {[%clk 0:02:31.6]} 17. O-O-O {[%clk 0:02:14.3]} 17... Qxa2
{[%clk 0:02:05.9]} 18. Qxc5 {[%clk 0:02:10.5]} 18... Qa1+ {[%clk 0:02:05]} 19.
Kc2 {[%clk 0:02:07.4]} 19... Rxe2+ {[%clk 0:02:03.4]} 20. Kd3 {[%clk 0:01:26.7]}
20... Qa6+ {[%clk 0:02:02.7]} 21. c4 {[%clk 0:01:21.4]} 21... Re8 {[%clk
0:02:01.4]} 22. Kc3 {[%clk 0:01:15.7]} 22... h6 {[%clk 0:01:58.8]} 23. Rhe1
{[%clk 0:01:08.1]} 23... Rxe1 {[%clk 0:01:54.9]} 24. Rxe1 {[%clk 0:01:07.8]}
24... Kh7 {[%clk 0:01:55]} 25. Qf5+ {[%clk 0:01:04.4]} 25... g6 {[%clk
0:01:16.5]} 26. Qd7 {[%clk 0:01:03.6]} 26... Kg7 {[%clk 0:01:11.9]} 27. Re7
{[%clk 0:00:59.9]} 27... Rf8 {[%clk 0:01:09.7]} 28. Qxb7 {[%clk 0:00:59.5]}
28... Qa5+ {[%clk 0:01:01.4]} 29. Qb4 {[%clk 0:00:58.7]} 29... Qf5 {[%clk
0:00:59.1]} 30. Re3 {[%clk 0:00:45.5]} 30... Rd8 {[%clk 0:00:57.8]} 31. Qe7
{[%clk 0:00:38.5]} 31... Rd1 {[%clk 0:00:55.3]} 32. Qxa7 {[%clk 0:00:28]} 32...
Rc1+ {[%clk 0:00:54.5]} 33. Kb4 {[%clk 0:00:26.5]} 33... Qc2 {[%clk 0:00:51.2]}
34. b3 {[%clk 0:00:24.4]} 34... Qd2+ {[%clk 0:00:50.5]} 35. Kb5 {[%clk
0:00:23.3]} 35... Qxf2 {[%clk 0:00:49]} 36. Re7 {[%clk 0:00:17.9]} 36... Qxa7
{[%clk 0:00:41.1]} 37. Rxa7 {[%clk 0:00:18.2]} 37... Rc3 {[%clk 0:00:40.4]} 38.
b4 {[%clk 0:00:17.3]} 38... Rxf3 {[%clk 0:00:40.4]} 39. c5 {[%clk 0:00:17.9]}
39... Rc3 {[%clk 0:00:40.3]} 40. c6 {[%clk 0:00:16.9]} 40... f5 {[%clk
0:00:40.8]} 41. c7 {[%clk 0:00:16.6]} 41... f4 {[%clk 0:00:41.3]} 42. Kb6 {[%clk
0:00:17]} 42... f3 {[%clk 0:00:41.6]} 43. b5 {[%clk 0:00:17.1]} 43... g5 {[%clk
0:00:40.2]} 44. Ra3 {[%clk 0:00:15.1]} 44... f2 {[%clk 0:00:33.7]} 45. Rxc3
{[%clk 0:00:13.4]} 45... f1=Q {[%clk 0:00:33.9]} 46. c8=Q {[%clk 0:00:13.8]}
46... Qf2+ {[%clk 0:00:33.7]} 47. Qc5 {[%clk 0:00:13.9]} 47... Qf6+ {[%clk
0:00:33.2]} 48. Qc6 {[%clk 0:00:14.3]} 48... Qf2+ {[%clk 0:00:32.3]} 49. Kb7
{[%clk 0:00:14.8]} 49... Qxh2 {[%clk 0:00:31.5]} 50. Rf3 {[%clk 0:00:11.9]}
50... Qe5 {[%clk 0:00:29.4]} 51. Rd3 {[%clk 0:00:09.1]} 51... Qe7+ {[%clk
0:00:28.8]} 52. Rd7 {[%clk 0:00:09.6]} 52... Qe3 {[%clk 0:00:26.4]} 53. b6
{[%clk 0:00:09.8]} 53... g4 {[%clk 0:00:25.7]} 54. Qd5 {[%clk 0:00:10]} 54...
Qf4 {[%clk 0:00:24]} 55. Ka8 {[%clk 0:00:08.8]} 55... g3 {[%clk 0:00:23.7]} 56.
b7 {[%clk 0:00:09]} 56... Qa4+ {[%clk 0:00:23]} 57. Kb8 {[%clk 0:00:08.8]} 57...
Qf4+ {[%clk 0:00:18.7]} 58. Kc8 {[%clk 0:00:08.5]} 58... g2 {[%clk 0:00:16.5]}
59. Qxg2+ {[%clk 0:00:07.7]} 59... Kf6 {[%clk 0:00:17]} 60. Qd5 {[%clk 0:00:08]}
1-0

[Event "*** SCC Grand Prix: Titled Tuesday Blitz"]
[Site "Chess.com"]
[Date "2020.07.07"]
[Round "3"]
[White "ZEN-22"]
[Black "Gusarov91"]
[Result "1/2-1/2"]
[WhiteElo "2403"]
[BlackElo "2576"]
[TimeControl "180+1"]
[EndTime "10:29:59 PDT"]
[Termination "Game drawn by repetition"]

1. e4 {[%clk 0:03:00.9]} 1... c5 {[%clk 0:02:59.6]} 2. b4 {[%clk 0:02:59.9]}
2... b6 {[%clk 0:02:59.1]} 3. Nf3 {[%clk 0:02:56.6]} 3... Bb7 {[%clk 0:02:58.5]}
4. bxc5 {[%clk 0:02:55.9]} 4... Bxe4 {[%clk 0:02:58.6]} 5. cxb6 {[%clk
0:02:54.1]} 5... axb6 {[%clk 0:02:59.1]} 6. Nc3 {[%clk 0:02:53.4]} 6... Bb7
{[%clk 0:02:58.5]} 7. d4 {[%clk 0:02:48.9]} 7... Nf6 {[%clk 0:02:58.5]} 8. d5
{[%clk 0:02:45.9]} 8... g6 {[%clk 0:02:57.5]} 9. d6 {[%clk 0:02:42.7]} 9... Bg7
{[%clk 0:02:56.3]} 10. Nb5 {[%clk 0:02:41.7]} 10... O-O {[%clk 0:02:54.6]} 11.
Be2 {[%clk 0:02:35.3]} 11... Ne4 {[%clk 0:02:52.2]} 12. Rb1 {[%clk 0:02:33.2]}
12... exd6 {[%clk 0:02:48.6]} 13. Bb2 {[%clk 0:02:26.5]} 13... Bxb2 {[%clk
0:02:36.5]} 14. Rxb2 {[%clk 0:02:25.8]} 14... Qf6 {[%clk 0:02:37.2]} 15. Qd4
{[%clk 0:02:18.9]} 15... d5 {[%clk 0:02:13.5]} 16. Qxf6 {[%clk 0:02:11.3]} 16...
Nxf6 {[%clk 0:02:13.7]} 17. Nc7 {[%clk 0:02:06.3]} 17... Ra3 {[%clk 0:02:08.9]}
18. Rxb6 {[%clk 0:02:04.1]} 18... Rxa2 {[%clk 0:01:53.5]} 19. Rxb7 {[%clk
0:01:59.3]} 19... Ra1+ {[%clk 0:01:53.4]} 20. Bd1 {[%clk 0:01:58.7]} 20... Na6
{[%clk 0:01:51.4]} 21. Nxa6 {[%clk 0:01:56.6]} 21... Re8+ {[%clk 0:01:51.5]} 22.
Kd2 {[%clk 0:01:51.4]} 22... Ne4+ {[%clk 0:01:51.7]} 23. Kd3 {[%clk 0:01:30.6]}
23... Nxf2+ {[%clk 0:01:51.6]} 24. Kd2 {[%clk 0:01:30.1]} 24... Nxh1 {[%clk
0:01:43.6]} 25. Be2 {[%clk 0:01:29.4]} 25... Nf2 {[%clk 0:01:37.5]} 26. Nc5
{[%clk 0:01:26.3]} 26... Ne4+ {[%clk 0:01:36.8]} 27. Nxe4 {[%clk 0:01:24]} 27...
dxe4 {[%clk 0:01:37.3]} 28. Nd4 {[%clk 0:01:17.4]} 28... d5 {[%clk 0:01:35.2]}
29. Bb5 {[%clk 0:01:10.7]} 29... e3+ {[%clk 0:01:32.4]} 30. Ke2 {[%clk
0:01:09.6]} 30... Re4 {[%clk 0:01:31.8]} 31. Nc6 {[%clk 0:01:05.3]} 31... Rg1
{[%clk 0:01:24.1]} 32. Kf3 {[%clk 0:00:41]} 32... Kf8 {[%clk 0:00:58.1]} 33. Bd3
{[%clk 0:00:38.4]} 33... Re8 {[%clk 0:00:48.9]} 34. Be2 {[%clk 0:00:33.8]} 34...
Rc1 {[%clk 0:00:44.6]} 35. Nd4 {[%clk 0:00:32.4]} 35... Re4 {[%clk 0:00:44.6]}
36. Rb4 {[%clk 0:00:30.3]} 36... h5 {[%clk 0:00:43.9]} 37. Bd3 {[%clk
0:00:29.2]} 37... Re5 {[%clk 0:00:43.4]} 38. Kf4 {[%clk 0:00:23.9]} 38... Re8
{[%clk 0:00:41.7]} 39. Rb5 {[%clk 0:00:17.9]} 39... Rh1 {[%clk 0:00:38.2]} 40.
Kg3 {[%clk 0:00:16.6]} 40... h4+ {[%clk 0:00:36.3]} 41. Kh3 {[%clk 0:00:16.5]}
41... Rd1 {[%clk 0:00:31.9]} 42. Rxd5 {[%clk 0:00:16.3]} 42... e2 {[%clk
0:00:31]} 43. Nxe2 {[%clk 0:00:10.6]} 43... Rxe2 {[%clk 0:00:28.5]} 44. Rd4
{[%clk 0:00:09.9]} 44... Rdd2 {[%clk 0:00:24.3]} 45. Rg4 {[%clk 0:00:08.5]}
45... Rf2 {[%clk 0:00:21.4]} 46. Rg5 {[%clk 0:00:04.2]} 46... Kg7 {[%clk
0:00:20.6]} 47. Rg4 {[%clk 0:00:04.1]} 47... f5 {[%clk 0:00:20.1]} 48. Rxh4
{[%clk 0:00:04.1]} 48... Rxg2 {[%clk 0:00:20.1]} 49. Rc4 {[%clk 0:00:04.7]}
49... Rxh2+ {[%clk 0:00:20.3]} 50. Kg3 {[%clk 0:00:05.6]} 50... Rdf2 {[%clk
0:00:19.9]} 51. Rc6 {[%clk 0:00:03.8]} 51... g5 {[%clk 0:00:19.1]} 52. Bxf5
{[%clk 0:00:02.1]} 52... Rhg2+ {[%clk 0:00:18.5]} 53. Kh3 {[%clk 0:00:03]} 53...
Rh2+ {[%clk 0:00:18]} 54. Kg3 {[%clk 0:00:02.4]} 54... Rfg2+ {[%clk 0:00:18.3]}
55. Kf3 {[%clk 0:00:02.4]} 55... Rf2+ {[%clk 0:00:18.1]} 56. Kg3 {[%clk
0:00:02.7]} 1/2-1/2

[Event "*** SCC Grand Prix: Titled Tuesday Blitz"]
[Site "Chess.com"]
[Date "2020.07.07"]
[Round "3"]
[White "Vision_64"]
[Black "mbachez"]
[Result "1-0"]
[WhiteElo "2195"]
[BlackElo "2427"]
[TimeControl "180+1"]
[EndTime "10:30:01 PDT"]
[Termination "Vision_64 won by resignation"]

1. e4 {[%clk 0:03:00.9]} 1... c6 {[%clk 0:02:58.9]} 2. Nf3 {[%clk 0:02:59]} 2...
d5 {[%clk 0:02:58.7]} 3. Nc3 {[%clk 0:02:59.5]} 3... dxe4 {[%clk 0:02:58.5]} 4.
Nxe4 {[%clk 0:02:59.2]} 4... Nf6 {[%clk 0:02:58.8]} 5. Qe2 {[%clk 0:02:59.8]}
5... Bf5 {[%clk 0:02:52.3]} 6. Nxf6+ {[%clk 0:02:50.9]} 6... gxf6 {[%clk
0:02:53.2]} 7. d3 {[%clk 0:02:44.6]} 7... e6 {[%clk 0:02:52]} 8. Be3 {[%clk
0:02:41]} 8... Nd7 {[%clk 0:02:49.6]} 9. O-O-O {[%clk 0:02:33.3]} 9... Qa5
{[%clk 0:02:48.4]} 10. Kb1 {[%clk 0:02:31.4]} 10... O-O-O {[%clk 0:02:48.3]} 11.
Nd4 {[%clk 0:02:27.2]} 11... Bg6 {[%clk 0:02:47.8]} 12. g3 {[%clk 0:02:21.9]}
12... Nb6 {[%clk 0:02:46.3]} 13. Nb3 {[%clk 0:02:19.4]} 13... Qa4 {[%clk
0:02:43.5]} 14. Bxb6 {[%clk 0:01:56.8]} 14... axb6 {[%clk 0:02:41.3]} 15. Bg2
{[%clk 0:01:56.4]} 15... Bd6 {[%clk 0:02:39]} 16. h4 {[%clk 0:01:55.1]} 16... h5
{[%clk 0:02:38]} 17. Qe3 {[%clk 0:01:44.9]} 17... Kc7 {[%clk 0:02:35.8]} 18.
Rhe1 {[%clk 0:01:39.7]} 18... Ra8 {[%clk 0:02:34.7]} 19. Nc1 {[%clk 0:01:31.2]}
19... Ra5 {[%clk 0:02:30]} 20. Qf3 {[%clk 0:01:12.9]} 20... Bf5 {[%clk
0:02:24.4]} 21. Re4 {[%clk 0:00:58.3]} 21... Bxe4 {[%clk 0:02:20.8]} 22. dxe4
{[%clk 0:00:58.5]} 22... Be5 {[%clk 0:02:15]} 23. Qd3 {[%clk 0:00:55.1]} 23...
Kb8 {[%clk 0:01:52.6]} 24. f4 {[%clk 0:00:48.8]} 24... Bc7 {[%clk 0:01:48.8]}
25. Qc3 {[%clk 0:00:25.1]} 25... e5 {[%clk 0:01:44]} 26. Rd7 {[%clk 0:00:19.4]}
26... Rc5 {[%clk 0:01:36.2]} 27. Qd2 {[%clk 0:00:16.4]} 27... exf4 {[%clk
0:01:27]} 28. Nb3 {[%clk 0:00:15.3]} 28... Rc4 {[%clk 0:01:16.1]} 29. gxf4
{[%clk 0:00:14.7]} 29... Rg8 {[%clk 0:01:13.9]} 30. a3 {[%clk 0:00:10.4]} 30...
b5 {[%clk 0:01:05.7]} 31. Rxf7 {[%clk 0:00:10.2]} 31... b4 {[%clk 0:01:03.2]}
32. Qd7 {[%clk 0:00:10.3]} 32... Rc8 {[%clk 0:00:51.4]} 33. Bh3 {[%clk
0:00:10.3]} 33... f5 {[%clk 0:00:34.9]} 34. Bxf5 {[%clk 0:00:09.3]} 34... Rxc2
{[%clk 0:00:23.2]} 35. Qxc8+ {[%clk 0:00:09.2]} 35... Ka7 {[%clk 0:00:22.3]} 36.
Kxc2 {[%clk 0:00:08.8]} 36... bxa3 {[%clk 0:00:22.1]} 37. Qxc7 {[%clk
0:00:08.6]} 37... Qc4+ {[%clk 0:00:19.6]} 38. Kb1 {[%clk 0:00:07.4]} 38... a2+
{[%clk 0:00:19.7]} 39. Kxa2 {[%clk 0:00:07.5]} 39... Qa6+ {[%clk 0:00:19.8]} 40.
Kb1 {[%clk 0:00:07.3]} 40... Qd3+ {[%clk 0:00:18.8]} 41. Kc1 {[%clk 0:00:06.7]}
41... Qf1+ {[%clk 0:00:18.6]} 42. Kc2 {[%clk 0:00:06.5]} 42... Qc4+ {[%clk
0:00:18.5]} 43. Kd2 {[%clk 0:00:06.3]} 43... Qb4+ {[%clk 0:00:18.6]} 44. Ke2
{[%clk 0:00:06.1]} 44... Qc4+ {[%clk 0:00:18.6]} 45. Kf2 {[%clk 0:00:06.3]}
45... Qc2+ {[%clk 0:00:17.7]} 46. Ke1 {[%clk 0:00:05.6]} 46... Qb1+ {[%clk
0:00:16]} 47. Ke2 {[%clk 0:00:05.4]} 47... Qxb2+ {[%clk 0:00:14.1]} 48. Nd2
{[%clk 0:00:05.7]} 48... Qb5+ {[%clk 0:00:14.1]} 49. Ke3 {[%clk 0:00:06]} 49...
Qc5+ {[%clk 0:00:13.5]} 50. Ke2 {[%clk 0:00:06.4]} 50... Qb5+ {[%clk 0:00:13.3]}
51. Kf2 {[%clk 0:00:06.9]} 51... Qc5+ {[%clk 0:00:13.2]} 52. Kg2 {[%clk
0:00:07.2]} 52... Qb5 {[%clk 0:00:07.1]} 53. Qxb7+ {[%clk 0:00:07.2]} 53... Qxb7
{[%clk 0:00:06.7]} 54. Rxb7+ {[%clk 0:00:08.1]} 54... Kxb7 {[%clk 0:00:07.4]}
1-0

[Event "*** SCC Grand Prix: Titled Tuesday Blitz"]
[Site "Chess.com"]
[Date "2020.07.07"]
[Round "3"]
[White "Dr-Bassem"]
[Black "olksuna"]
[Result "1-0"]
[WhiteElo "2808"]
[BlackElo "2608"]
[TimeControl "180+1"]
[EndTime "10:30:02 PDT"]
[Termination "Dr-Bassem won by resignation"]

1. e4 {[%clk 0:03:00.9]} 1... c5 {[%clk 0:02:59.7]} 2. Nf3 {[%clk 0:02:59.2]}
2... Nc6 {[%clk 0:03:00.3]} 3. g3 {[%clk 0:02:53.2]} 3... g6 {[%clk 0:02:59]} 4.
Bg2 {[%clk 0:02:53.5]} 4... Bg7 {[%clk 0:02:59.6]} 5. O-O {[%clk 0:02:54]} 5...
e5 {[%clk 0:02:59.6]} 6. c3 {[%clk 0:02:52.1]} 6... Nge7 {[%clk 0:02:58.8]} 7.
a3 {[%clk 0:02:50.2]} 7... O-O {[%clk 0:02:55.7]} 8. d3 {[%clk 0:02:48.4]} 8...
d6 {[%clk 0:02:53.5]} 9. b4 {[%clk 0:02:47.9]} 9... b6 {[%clk 0:02:51.2]} 10.
Nbd2 {[%clk 0:02:47]} 10... h6 {[%clk 0:02:50]} 11. Bb2 {[%clk 0:02:38]} 11...
Be6 {[%clk 0:02:44.6]} 12. Nc4 {[%clk 0:02:37]} 12... Qd7 {[%clk 0:02:33.1]} 13.
b5 {[%clk 0:02:36]} 13... Nd8 {[%clk 0:02:32.6]} 14. a4 {[%clk 0:02:36.2]} 14...
f5 {[%clk 0:02:29.8]} 15. exf5 {[%clk 0:02:35.7]} 15... Bxf5 {[%clk 0:02:14.2]}
16. Nfxe5 {[%clk 0:02:33.3]} 16... dxe5 {[%clk 0:02:14.3]} 17. Bxa8 {[%clk
0:02:33.1]} 17... Qxd3 {[%clk 0:02:14.3]} 18. Ne3 {[%clk 0:02:25.8]} 18... Ne6
{[%clk 0:01:55.5]} 19. Bg2 {[%clk 0:02:05.9]} 19... Kh7 {[%clk 0:01:22.7]} 20.
Nxf5 {[%clk 0:01:39.5]} 20... Qxf5 {[%clk 0:01:21.2]} 21. Qe2 {[%clk 0:01:39.2]}
21... Ng5 {[%clk 0:01:16.3]} 22. Rad1 {[%clk 0:00:41.6]} 22... e4 {[%clk
0:01:12.9]} 23. h4 {[%clk 0:00:37.4]} 23... Nf3+ {[%clk 0:01:11.8]} 24. Kh1
{[%clk 0:00:31.5]} 24... g5 {[%clk 0:00:56.3]} 25. Bxf3 {[%clk 0:00:26.8]} 25...
exf3 {[%clk 0:00:53.1]} 26. Qd3 {[%clk 0:00:27.4]} 26... gxh4 {[%clk 0:00:53.2]}
27. g4 {[%clk 0:00:25.7]} 27... Qxd3 {[%clk 0:00:52]} 28. Rxd3 {[%clk
0:00:26.6]} 28... Ng6 {[%clk 0:00:51.8]} 29. Rd7 {[%clk 0:00:19.5]} 29... Ne5
{[%clk 0:00:46.8]} 30. Rxg7+ {[%clk 0:00:16.6]} 30... Kxg7 {[%clk 0:00:45.4]}
31. c4 {[%clk 0:00:17]} 31... Rd8 {[%clk 0:00:13.4]} 32. Bxe5+ {[%clk
0:00:15.4]} 32... Kg6 {[%clk 0:00:14.3]} 33. Kh2 {[%clk 0:00:12.4]} 33... Rd2
{[%clk 0:00:13.5]} 34. Kh3 {[%clk 0:00:12.6]} 34... Kg5 {[%clk 0:00:13.8]} 35.
Bb8 {[%clk 0:00:11.1]} 35... Ra2 {[%clk 0:00:10]} 36. Bxa7 {[%clk 0:00:10.3]}
36... Rxa4 {[%clk 0:00:10.7]} 37. Bxb6 {[%clk 0:00:10.8]} 37... Rxc4 {[%clk
0:00:11.6]} 38. Bd8+ {[%clk 0:00:11]} 38... Kf4 {[%clk 0:00:11.3]} 39. b6 {[%clk
0:00:10.7]} 39... Rb4 {[%clk 0:00:11.7]} 40. Kxh4 {[%clk 0:00:09]} 40... c4
{[%clk 0:00:08.6]} 41. Bc7+ {[%clk 0:00:09.5]} 41... Ke4 {[%clk 0:00:08.4]} 42.
Kh5 {[%clk 0:00:08.3]} 42... c3 {[%clk 0:00:08.2]} 43. Kxh6 {[%clk 0:00:08.5]}
43... Kd3 {[%clk 0:00:08.6]} 44. g5 {[%clk 0:00:06.8]} 44... c2 {[%clk
0:00:08.4]} 45. Rc1 {[%clk 0:00:05.9]} 45... Rb1 {[%clk 0:00:03.9]} 46. Rxc2
{[%clk 0:00:05.7]} 46... Kxc2 {[%clk 0:00:04.8]} 47. g6 {[%clk 0:00:06.2]} 47...
Rh1+ {[%clk 0:00:04.5]} 48. Kg5 {[%clk 0:00:06.2]} 48... Rg1+ {[%clk 0:00:04.3]}
49. Kf6 {[%clk 0:00:06.3]} 49... Rg2 {[%clk 0:00:04.7]} 50. b7 {[%clk
0:00:06.2]} 50... Rxf2 {[%clk 0:00:03.9]} 51. b8=Q {[%clk 0:00:06.6]} 51... Re2
{[%clk 0:00:04.5]} 52. Bb6 {[%clk 0:00:05.6]} 52... f2 {[%clk 0:00:03]} 53. Qc7+
{[%clk 0:00:05.8]} 1-0